Cogmind - Beta 12 @@@ ROGUE MODE // 2023.06.12 @ 16:06:38 Player: deadnoob Result: Destroyed by 8R-AWN with 8R-AWN's Boregun Performance ------------- Evolutions (0) 0 Regions Visited (3) 600 Robots Destroyed (23) 115 Value Destroyed (472) 472 Prototype IDs (24) 480 Alien Tech Used (0) 0 Bonus (91) 91 TOTAL SCORE: 1758 Bonus ------- Aligned with FarCom 300 Friendly Fire -209 Cogmind --------- Core Integrity 0/250 Matter 225/300 Energy 64/100 System Corruption 1% Temperature Cool (0) Movement Treading (160) Location -10/Exiles Parts ------- > --- POWER (1) -------- (None) > --- PROPULSION (2) --- Light Treads Light Treads > --- UTILITY (2) ------ Medium Storage Unit > --- WEAPON (2) ------- Beamcaster Longsword +1 > --- INVENTORY (10) --- Light Treads Light Treads High-capacity Storage Unit Huge Storage Unit Experimental Sensor Array Modified TNC Small Laser Peak State ------------ > --- POWER ------------ (None) > --- PROPULSION ------- Light Treads Light Treads > --- UTILITY ---------- Improved Heat Sink High-capacity Storage Unit > --- WEAPON ----------- Medium Laser Beamcaster > --- INVENTORY -------- Reinforced Deuterium Engine Light Fission Core Light Fission Core Light Treads Light Treads Light Treads Light Treads Light Treads Medium Storage Unit Huge Storage Unit Experimental Sensor Array Modified TNC Small Laser XL Autogun Array Grenade Launcher Longsword +1 [Rating: 20] Favorites ----------- Power Ion Engine Engine Ion Engine Propulsion Light Treads Treads Light Treads Leg Aluminum Leg Utility Improved Heat Sink Device Improved Heat Sink Storage Medium Storage Unit Weapon Medium Laser Energy Gun Medium Laser Launcher Grenade Launcher Slashing Weapon Longsword +1 Build | -11 -10 -10 -10 ------- Run | Jun Mat Min Exi Slots Evolved . | . . . . Power . | . . . . Propulsion . | . . . . Utility . | . . . . Weapon . | . . . . Parts Attached 32 | . 15 8 9 Power 2 | . 2 . . Engine 2 | . 2 . . Core . | . . . . Reactor . | . . . . Propulsion 5 | . 3 . 2 Treads 5 | . 3 . 2 Leg . | . . . . Wheel . | . . . . Hover . | . . . . Flight . | . . . . Utility 10 | . 6 2 2 Device 5 | . 3 2 . Storage 5 | . 3 . 2 Processor . | . . . . Hackware . | . . . . Protection . | . . . . Artifact . | . . . . Weapon 15 | . 4 6 5 Energy Gun 9 | . 2 4 3 Energy Cannon . | . . . . Ballistic Gun . | . . . . Ballistic Cannon . | . . . . Launcher 5 | . 2 2 1 Special Weapon . | . . . . Impact Weapon . | . . . . Slashing Weapon 1 | . . . 1 Piercing Weapon . | . . . . Special Melee Weapon . | . . . . Unidentified Prototypes 1 | . . 1 . Parts Lost 6 | . . 1 5 Power 1 | . . 1 . Propulsion 2 | . . . 2 Utility 1 | . . . 1 Weapon 2 | . . . 2 Highest Loss Streak 4 | . . 1 4 To Critical Strikes 1 | . . . 1 Average Slot Usage (%) 94 | . 99 96 82 Engine 9 | . 14 10 . Treads 19 | . 10 28 27 Leg 8 | . 17 . . Device 13 | . 13 14 12 Storage 14 | . 14 14 14 Energy Gun 27 | . 27 27 25 Naked Turns . | . . . . Heaviest Build 49 | 11 19 23 49 Greatest Support 40 | 20 40 40 40 Greatest Overweight (x) 2 | . . . 2 Average Overweight (x) . | . . . . Largest Inventory Capacity 25 | 8 25 10 20 Average Capacity 11 | 8 8 10 19 Most Carried 19 | 5 10 10 19 Average Carried 9 | 5 7 10 14 Final Capacity 10 | 8 10 10 10 Final Carried 10 | 4 10 10 7 Class Distribution -------------------- 82% | Mutant 17% | Scavenger-Mutant Dominant Class ---------------- Mutant | -10/Materials Scavenger-Mutant | -10/Mines Mutant | -10/Exiles Resources | -11 -10 -10 -10 ----------- Run | Jun Mat Min Exi Matter Collected 515 | 200 195 120 . Remotely . | . . . . Salvage Created 758 | . 598 152 8 Parts 44 | . 42 2 . Haulers Intercepted 2 | . 2 . . Recyclers Shooed . | . . . . Parts Field Recycled . | . . . . Retrieved Matter . | . . . . Parts Self-Destructed . | . . . . Prevented . | . . . . Kills | -11 -10 -10 -10 ------- Run | Jun Mat Min Exi Combat Hostiles Destroyed 14 | . 9 4 1 Guns 9 | . 8 1 . AOE 4 | . 1 2 1 Classes Destroyed 7 | . 6 1 . Worker 4 | . 4 . . Builder 3 | . 3 . . Tunneler 1 | . 1 . . Hauler 2 | . 2 . . Watcher 1 | . 1 . . Grunt 11 | . 9 2 . Assembled 3 | . . 2 1 Thug 1 | . . 1 . Best Kill Streak 3 | . 3 2 1 Combat Bots Only 2 | . 2 2 1 Max Kills in Single Turn 2 | . 2 1 1 Gunslinging . | . . . . Exploded 1 | . 1 1 1 Melee . | . . . . Uniques/NPCs Destroyed . | . . . . Combat | -11 -10 -10 -10 -------- Run | Jun Mat Min Exi Damage Taken 1214 | . 433 193 588 Core 264 | . 80 68 116 Absorbed by Shields . | . . . . Regen/Repaired (Parts) 118 | . 118 . . Core Remaining (%) 100 | 100 . . . Volleys Fired 76 | . 54 19 3 Largest 2 | . 2 2 1 Hottest 125 | . 90 125 75 Shots Fired 140 | . 103 34 3 Gun 131 | . 99 30 2 Cannon . | . . . . Launcher 9 | . 4 4 1 Special . | . . . . Kinetic . | . . . . Thermal 131 | . 99 30 2 Explosive 9 | . 4 4 1 Electromagnetic . | . . . . Robot Hit Streak 10 | . 7 10 1 Robot Miss Streak 5 | . 5 3 . Penetration Max . | . . . . Secondary Targets . | . . . . Shots Hit Robots 84 | . 61 21 2 Core Hits 47 | . 34 12 1 Critical Kills . | . . . . Critical Parts Destroyed . | . . . . Critical Strikes 6 | . 5 1 . Burn 6 | . 5 1 . Melee Attacks 1 | . . . 1 Impact . | . . . . Slashing 1 | . . . 1 Piercing . | . . . . Sneak Attacks . | . . . . Combat Hostiles . | . . . . Follow-up Attacks . | . . . . Damage Inflicted 1632 | . 999 535 98 Guns 1078 | . 725 342 11 Cannons . | . . . . Explosions 514 | . 274 192 48 Melee 39 | . . . 39 Ramming 1 | . . 1 . Kinetic . | . . . . Thermal 1078 | . 725 342 11 Explosive 514 | . 274 192 48 Electromagnetic . | . . . . Impact . | . . . . Slashing 39 | . . . 39 Piercing . | . . . . Highest Corruption 1 | . 1 1 1 Average Corruption 1 | . 1 1 1 Corruption Purged . | . . . . Corruption Blocked . | . . . . Effects 14 | . 3 7 4 Message Errors 6 | . 1 3 2 Matter Fused 2 | . 1 1 . Heat Flow Errors 1 | . . 1 . Energy Discharges 2 | . 1 . 1 Parts Fused 1 | . . 1 . Data Loss (minor) 2 | . . 1 1 Overload Shots . | . . . . Overflow Damage 10 | . . 10 . Projectiles . | . . . . Explosions 10 | . . 10 . Melee . | . . . . Knockbacks . | . . . . Impact . | . . . . Kinetic . | . . . . Secondary . | . . . . Self-Inflicted Damage 69 | . 59 10 . Shots 4 | . 3 1 . Rammed 1 | . . 1 . Targets Rammed 1 | . . 1 . Kicked . | . . . . Crushed . | . . . . Highest Temperature 392 | . 118 392 . Average Temperature 93 | . 42 173 . Received Heat Transfer 370 | . 216 154 . Effects 2 | . . 2 . Energy Bleed 1 | . . 1 . Interference 1 | . . 1 . Siege Activations . | . . . . Robots Corrupted . | . . . . Combat Hostiles . | . . . . Parts Fried . | . . . . Impact Corruptions . | . . . . Robots Melted 1 | . . 1 . Combat Hostiles 1 | . . 1 . Parts Melted 4 | . 2 2 . Heat Transferred 3082 | . 2254 803 25 Parts Sabotaged . | . . . . Parts Stolen . | . . . . Parts Stripped . | . . . . Power Chain Reactions . | . . . . Missiles Intercepted . | . . . . Alert | -11 -10 -10 -10 ------- Run | Jun Mat Min Exi Peak Influence 243 | . 243 87 . Initial 58 | . . 58 . Average 62 | . 81 33 . Maximum Alert Level 1 | . 1 . . Low Security (%) 97 | 100 95 100 . Level 1 2 | . 4 . . Level 2 . | . . . . Level 3 . | . . . . Level 4 . | . . . . Level 5 . | . . . . High Security . | . . . . Max Security . | . . . . Squads Dispatched 1 | . 1 . . Investigation 1 | . 1 . . Extermination . | . . . . Reinforcement . | . . . . Assault . | . . . . Garrison . | . . . . Intercept . | . . . . Searches Triggered . | . . . . Construction Impeded . | . . . . Haulers Reinforced . | . . . . Active Scanning Responses . | . . . . Cargo Convoy Interrupts . | . . . . Stealth | -11 -10 -10 -10 --------- Run | Jun Mat Min Exi Distress Signals 1 | . 1 . . Communications Jammed . | . . . . Distress Signals . | . . . . Times Spotted 38 | . 23 7 8 Peak Tracking Total 10 | . 3 3 10 Tactical Retreats 3 | . 2 . 1 Traps | -11 -10 -10 -10 ------- Run | Jun Mat Min Exi Traps Triggered 1 | . 1 . . Indirectly . | . . . . Trap Hack Attempts . | . . . . Triggered . | . . . . Disarmed . | . . . . Reprogrammed . | . . . . Reused . | . . . . Traps Extracted . | . . . . Installed . | . . . . Triggered . | . . . . Exploded 3 | . . . 3 Machines | -11 -10 -10 -10 ---------- Run | Jun Mat Min Exi Machines Disabled 1 | . . . 1 Max in Single Turn 1 | . . . 1 Machines Repaired . | . . . . Machines Sabotaged . | . . . . Overloaded Fab Kills . | . . . . Hacking | -11 -10 -10 -10 --------- Run | Jun Mat Min Exi Machines Accessed 8 | . 6 . 2 Terminals 4 | . 4 . . Fabricators . | . . . . Repair Stations 1 | . 1 . . Recycling Units 1 | . 1 . . Scanalyzers . | . . . . Garrison Access . | . . . . Total Hacks 18 | . 16 . 2 Successful 10 | . 8 . 2 Failed 8 | . 8 . . Catastrophic . | . . . . Database Lockouts . | . . . . Manual 12 | . 11 . 1 Terminals 13 | . 13 . . Fabricators . | . . . . Repair Stations 2 | . 2 . . Recycling Units 1 | . 1 . . Scanalyzers . | . . . . Garrison Access . | . . . . Terminal Hacks 7 | . 5 . 2 Record 1 | . . . 1 Robot Analysis 2 | . 2 . . Locate Traps 1 | . 1 . . Transport Status 1 | . 1 . . Hauler Manifests 1 | . 1 . . EX-Prototype ID Bank 1 | . . . 1 Fabricator Hacks . | . . . . Repair Station Hacks 2 | . 2 . . Scan Component 1 | . 1 . . Repair 1 | . 1 . . Recycling Unit Hacks . | . . . . Scanalyzer . | . . . . Garrison Access Hacks . | . . . . Unauthorized Hacks 1 | . 1 . . Terminals . | . . . . Fabricators . | . . . . Repair Stations . | . . . . Recycling Units 1 | . 1 . . Tunnel 1 | . 1 . . Scanalyzers . | . . . . Garrison Access . | . . . . Data Cores Recovered . | . . . . Used . | . . . . Hacking Detections 4 | . 4 . . Full Trace Events . | . . . . Feedback Events . | . . . . Feedback Blocked . | . . . . Robot Schematics Acquired . | . . . . Robots Built . | . . . . Authchips . | . . . . Time . | . . . . Total Robot Build Rating . | . . . . Part Schematics Acquired . | . . . . Parts Built . | . . . . Authchips . | . . . . Time . | . . . . Total Part Build Rating . | . . . . Parts Repaired 1 | . 1 . . Time 26 | . 26 . . Parts Recycled . | . . . . Recycled Matter . | . . . . Retrieved Matter . | . . . . Retrieved Components . | . . . . Parts Scanalyzed . | . . . . Part Schematics Acquired . | . . . . Parts Damaged . | . . . . Bothacking | -11 -10 -10 -10 ------------ Run | Jun Mat Min Exi Used RIF Installer . | . . . . Robots Hacked . | . . . . Non-combat . | . . . . Combat . | . . . . Robot Hacks Applied . | . . . . Relay Couplers Released . | . . . . Fabnet Peak Effective % . | . . . . Robots Rewired . | . . . . Allies Hacked . | . . . . Hacks Repelled . | . . . . Allies | -11 -10 -10 -10 -------- Run | Jun Mat Min Exi Total Allies 1 | . . 1 . Largest Group 1 | . . 1 . Highest-Rated Group 31 | . . 31 . Highest-Rated Ally 31 | . . 31 . Total Orders . | . . . . Ally Attacks 9 | . . 9 . Total Damage 109 | . . 109 . Kills 3 | . . 3 . Allies Corrupted . | . . . . Allies Melted . | . . . . Intel | -11 -10 -10 -10 ------- Run | Jun Mat Min Exi Robot Analysis Total 2 | . 2 . . Derelict Logs Recovered 1 | . . 1 . Drone Launches . | . . . . Drone Recoveries . | . . . . Exploration | -11 -10 -10 -10 ------------- Run | Jun Mat Min Exi Turns Passed 3066 | 1 1434 973 658 Spaces Moved 1534 | 1 698 566 269 Core . | . . . . Treads 1073 | . 238 566 269 Legs 461 | 1 460 . . Wheels . | . . . . Hover . | . . . . Flight . | . . . . Fastest Speed 120 | 120 120 160 160 Average Speed 160 | 120 133 160 233 Slowest Speed 320 | 120 160 160 320 Overloaded Moves . | . . . . Propulsion Burnouts . | . . . . Robots Hopped . | . . . . Cave-ins Triggered . | . . . . Exploration Rate (%) 58 | 1 86 88 57 Regions Visited 3 Branch Regions 2 Pre-discovered Areas 2 | . 1 . 1 Known Exits Taken . | . . . . Unknown Exits Taken 3 | 1 1 1 . Scrap Searched . | . . . . Spaces Dug 18 | . 9 9 . Terrain Destroyed 67 | . 31 35 1 Melee . | . . . . Projectile . | . . . . AOE 67 | . 31 35 1 Terrain Rammed . | . . . . Walls Destroyed . | . . . . Machines Disabled . | . . . . Actions | -11 -10 -10 -10 --------- Run | Jun Mat Min Exi Total 1990 | 2 1095 598 295 Wait 307 | . 307 . . Move 1531 | . 697 565 269 Hop . | . . . . Pick Up 18 | . 11 . 7 Fast Attach 5 | . 2 3 . Attach 5 | . 1 . 4 Detach 2 | . 1 1 . Swap 22 | . 12 5 5 Drop 22 | 2 10 4 6 Fire 76 | . 54 19 3 Melee 1 | . . . 1 Ram . | . . . . Kick . | . . . . Crush 1 | . . 1 . Escape Stasis . | . . . . Rewire . | . . . . Trap . | . . . . Miscellaneous . | . . . . Route ------- -11/Junkyard -10/Materials (discovered 3 exits: *Mat / [*Min x2]) -10/Mines (discovered 3 exits: *Mat x2 / *Exi) -10/Exiles History --------- Turn | Location | Event 2 | -11/Junkyard | Discovered new exit (range 0) 2 | -11/Junkyard | Entered Materials 4 | -10/Materials | Discovered new exit (range 14) 311 | -10/Materials | Build established: Mutant 644 | -10/Materials | Discovered new exit (range 12) 703 | -10/Materials | Discovered new exit (range 16) 1351 | -10/Materials | Repaired Lgt. Treads 1436 | -10/Materials | Entered Mines 1476 | -10/Mines | Found a damaged Exp. Sensor Array with a note attached 1480 | -10/Mines | Found Prototype Device 1480 | -10/Mines | Identified Exp. Sensor Array 1508 | -10/Mines | Assembled infested the area 1582 | -10/Mines | Identified exit to Materials 1587 | -10/Mines | Received a Mining Laser from a helpful Derelict 1680 | -10/Mines | Discovered exit to Materials (range 5) 1845 | -10/Mines | Deemed a non-threat by the Exiles lab entrance 1948 | -10/Mines | Build established: Scavenger-Mutant 2168 | -10/Mines | Core integrity fell below 50% 2403 | -10/Mines | Discovered new exit (range 5) 2409 | -10/Mines | Entered Exiles 2476 | -10/Exiles | Met 8R-AWN 2489 | -10/Exiles | Build established: Mutant 2516 | -10/Exiles | Met EX-HEX 2620 | -10/Exiles | Learned location of Zion (-7) 2624 | -10/Exiles | Met EX-DEC 2658 | -10/Exiles | Met EX-BIN 2692 | -10/Exiles | Aligned with FarCom system 2694 | -10/Exiles | Given EX-Vault access code 2749 | -10/Exiles | Opened EX-Vault 2761 | -10/Exiles | Found Longsword +1 2772 | -10/Exiles | Found XL Autogun Array 2778 | -10/Exiles | Found Modified TNC 2824 | -10/Exiles | Warned to stay clear of 0b10 Research branches 2966 | -10/Exiles | Attacked by the Exiles 3009 | -10/Exiles | Core integrity fell below 20% 3037 | -10/Exiles | Lost 4 parts (1n1u2w) 3067 | -10/Exiles | Destroyed by 8R-AWN with 8R-AWN's Boregun Last Messages --------------- 03053_ HV Slug penetrates Wall. 03056_ Penetrated by HV Slug. 03056_ Lgt. Treads destroyed. 03056_ HV Slug penetrates Wall. 03056_ HV Slug penetrates Machine. 03056_ Machine disabled. 03058_ Penetrated by HV Slug. 03058_ HV Slug penetrates Machine. 03058_ Machine disabled. 03058_ Penetrated by HV Slug. 03058_ HV Slug penetrates Machine. 03060_ Penetrated by HV Slug. 03060_ HV Slug penetrates Machine. 03060_ Penetrated by HV Slug. 03060_ HV Slug penetrates Machine. 03064_ Penetrated by HV Slug. 03064_ HV Slug penetrates Wall. 03064_ Penetrated by HV Slug. 03064_ HV Slug penetrates Wall. 03067_ Penetrated by HV Slug. Map ----- +----------------------------------------------------+ | ?????????????????????????????????????????????????? | | ?????????????????????????????????????????????????? | | ?????????????????????????????????????????????????? | | ?????????????????????????????????????????????????? | | ?????????????????????????????????????????????????? | | ?????????????????????????????????????????????????? | | ?????????????????????????????????????????????????? | | ?????????????????????????????????????????????????? | | ?????????????????????????????????????????????????? | | ?????????????????????????????????????????????????? | | ?????????????????????????????????????????????????? | | ?????????????????????????????????????????????????? | | ?????????????????????????????????????????????????? | | ??????????????????????????######?????????????????? | | ???????????? ######???????#!!! "#????????????????? | | ???????????? #""#??????# "?????????????????? | | ???????????? ??????# "#????????????????? | | ???????????? #????## ""#????????????##### | | ???????????? #####" ""#???????????? """ | | ????????????? ##" ""?????????????" """ | | ????????????? # " #?????????????"" | | ???????????????# #????????????#"" | | ??????????????????# a ###??????????#"" " | | ???????????????????## ;#??????????? "" | | ????????????########" ;##???????????" "? | | ????????????# !! @g % ##??????????# #? | | ????????????#! ;## % ######???### ## | | ????????????#! [ ###" % = ""#####X# #" | | ????????????#! ##??#" " | | ????????????# !""""""###???#"# " | | ????????????##########?????#### | | ??????????????????????????????### % | | ????????????????????????????????### | | ??????????????????????????????????## | | ???????????????????????????????????# | | ????????????????????????????????????## | | ?????????????????????????????????????#""" | | ?????????????????????????????????????#" | | ?????????????????????????????????????"" | | ?????????????????????????????????????""" | | ?????????????????????????????????????"" | | ??????????????????????????????????????" | | ?????????????????????????????????????" | | ?????????????????????????????????????"" | | ?????????????????????????????????????? | | ??????????????????????????????????????" | | ????????????????????????????????????????" | | ?????????????????????????????????????????? ???? | | ?????????????????????????????????????????????????? | | ?????????????????????????????????????????????????? | +----------------------------------------------------+ Best States ------------- Heat Dissipation 39 Energy Generation 10 Energy Capacity 250 Matter Stores 300 Matter Capacity 300 Sight Range 16 Terrain Scan Range 14 Terrain Scan Density 10 Evasion (%) 55 Recoil Reduction 2 Item Schematics ----------------- None Robot Schematics ------------------ None Fabricated ------------ Nothing Alien Tech Used ----------------- None Achievements -------------- None Challenges ------------ None Game ------ Seed UtilityRegenerativeAutogun Manual? 0 Play Time 00:16:39 Cumulative 220.1 hours Start 2023.06.12 @ 15:52:34 End 2023.06.12 @ 16:06:38 Sessions 1 Manual Loads 0 Difficulty Rogue Special Mode None Game No. 303 Rogue 303 Adventurer 0 Explorer 0 Win Type - Total 7 Types 6/0/0/1/0/0/0/0/0 Lore% 82 Gallery% 86 Achievement% 69 Wizard Run 0 Options --------- ASCII 0 Keyboard 0 Movement Numpad Keybinds 0 Fullscreen 2 Font 18/SmallcapsGlow Map View 76x50 Tactical HUD 1 Map Filters NONE Filters NONE Steam 1 RUN: 47338c9c-1782-4a75-b939-e051203ff6fc